bitfinex-derivatives/quotes_SOLF0:USTF0_20250202
["timestamp","ask_amount","ask_price","bid_price","bid_amount"]
[1738523233188,42.83434795,197.18,197.0,42.83434795]
[1738523233396,0.03339708,197.15,197.11,0.03642307]
[1738523233694,7.16954069,197.17,197.04,42.83434795]
[1738523233895,7.16954069,197.17,197.08,42.83434795]
[1738523234098,0.03200159,197.15,197.11,0.03608709]
[1738523234491,0.91941266,197.28,197.12,42.83434795]
[1738523234795,29.50569992,197.29,197.12,42.83434795]
[1738523235003,0.03751351,197.15,197.13,5.0766]
[1738523235199,26.53589992,197.29,197.12,42.83434795]
[1738523235396,26.53589992,197.29,197.2,5.0747]
[1738523235701,26.53589992,197.29,197.16,42.83434795]
[1738523235897,6.61261087,197.29,197.16,42.83434795]
[1738523236404,0.03398082,197.24,197.21,0.03815693]
[1738523236811,8.082e-05,197.24,197.22,5.0742]
[1738523237017,14.99498905,197.3,197.23,85.6686959]
[1738523237317,26.9498156,197.31,197.29,42.83434795]
[1738523237504,5.99126559,197.31,197.25,42.83434795]
[1738523237706,5.99126559,197.31,197.21,42.83434795]
[1738523237911,5.0725,197.29,197.18,11.1551]
[1738523238117,20.14705884,197.38,197.25,42.83434795]
[1738523238306,6.932e-05,197.28,197.24,0.03394168]
[1738523238510,20.14705884,197.38,197.3,5.0721]
[1738523238718,20.14705884,197.38,197.27,42.83434795]
[1738523238916,20.14705884,197.38,197.23,42.83434795]
[1738523239715,20.14705884,197.38,197.15,0.70647437]
[1738523239716,0.03570311,197.32,197.29,0.03591968]
[1738523240218,0.03570311,197.32,197.19,42.83434795]
[1738523240614,5.0719,197.31,197.29,0.03611124]
[1738523240813,9.5552,197.36,197.15,43.54082232]
[1738523241206,9.5552,197.36,197.19,42.83434795]
[1738523241716,14.6259,197.36,197.26,5.0731]
[1738523241910,42.83434795,197.49,197.27,42.83434795]
[1738523242211,9.928e-05,197.29,197.27,47.90724795]
[1738523242411,0.91943823,197.4,197.27,42.83434795]
[1738523242618,0.91943823,197.39,197.27,42.83434795]
[1738523242817,0.91943823,197.38,197.27,42.83434795]
[1738523243017,0.91943823,197.47,197.27,42.83434795]
[1738523243214,81.56778712,197.48,197.27,42.83434795]
[1738523243411,81.56778712,197.48,197.31,42.83434795]
[1738523243609,0.03510201,197.39,197.35,0.03379913]
[1738523244010,81.56778712,197.48,197.31,143.23434795]
[1738523244209,0.03426266,197.39,197.35,42.83434795]
[1738523244413,0.03426266,197.39,197.35,42.8672708]
[1738523244619,0.91992272,197.47,197.35,42.8672708]
[1738523245012,0.91992272,197.47,197.31,143.23434795]
[1738523245218,0.91992272,197.46,197.31,100.4]
[1738523245412,0.91992272,197.48,197.31,143.23434795]
[1738523245820,0.03256772,197.4,197.37,0.03198419]
[1738523246321,0.91992272,197.46,197.37,0.03198419]
[1738523246521,0.03227505,197.4,197.37,4.08198419]
[1738523247114,0.91992272,197.46,197.37,4.08198419]
[1738523247322,78.52688712,197.46,197.43,42.83434795]
[1738523247524,2.272e-05,197.45,197.43,42.83434795]
[1738523247723,2.272e-05,197.45,197.44,5.0684]
[1738523247923,2.272e-05,197.45,197.43,42.83434795]
[1738523248221,2.272e-05,197.45,197.37,4.05]
[1738523248623,2.272e-05,197.45,197.42,0.0326451]
[1738523248819,78.56042152,197.46,197.42,0.0326451]
[1738523249020,0.91194385,197.45,197.42,0.0326451]
[1738523249417,0.91194385,197.44,197.42,0.0326451]
[1738523249621,0.94547825,197.46,197.37,4.05]
[1738523249819,0.91194385,197.45,197.38,14.35328828]
[1738523250026,0.0335344,197.46,197.39,25.391205]
[1738523250319,0.0335344,197.46,197.4,5.51982717]
[1738523250630,5.0689,197.43,197.41,5.07540517]
[1738523250815,0.0335344,197.46,197.41,5.07540517]
[1738523250816,0.91218894,197.42,197.41,5.07540517]
[1738523251019,0.0335344,197.46,197.41,0.03607864]
[1738523251822,85.6686959,197.45,197.26,6.28363049]
[1738523252120,42.83434795,197.38,197.27,25.39657418]
[1738523252321,5.0726,197.29,197.28,14.35473607]
[1738523252517,5.0726,197.29,197.28,14.35499052]
[1738523252715,1.01286336,197.46,197.28,14.35499052]
[1738523252716,5.0698,197.4,197.3,5.0721]
[1738523252917,6.0184,197.45,197.31,25.39712275]
[1738523253117,6.0184,197.45,197.32,31.68217497]
[1738523253319,0.03354097,197.37,197.33,14.35499052]
[1738523253518,0.03354097,197.37,197.34,25.3544678]
[1738523253825,6.0184,197.45,197.36,6.28505222]
[1738523254020,6.0184,197.45,197.37,14.35499052]
[1738523254216,6.0184,197.45,197.38,5.52105233]
[1738523254416,0.91241179,197.44,197.39,5.49930647]
[1738523254621,0.03675744,197.43,197.32,6.28087574]
[1738523254817,0.03675744,197.43,197.33,25.29730133]
[1738523255015,0.03675744,197.43,197.4,0.03472021]
[1738523255220,0.91278444,197.44,197.41,5.49854455]
[1738523255426,0.03775345,197.4,197.34,12.06131636]
[1738523255618,5.0704,197.37,197.35,14.29628671]
[1738523255817,0.03775345,197.4,197.3,6.28087574]
[1738523255818,42.83434795,197.4,197.3,6.28087574]
[1738523256121,5.0734,197.26,197.21,6.28087574]
[1738523256322,5.0734,197.26,197.17,13.9169035]
[1738523256323,42.83434795,197.32,197.18,6.28087574]
[1738523256625,42.83434795,197.36,197.21,5.0744]
[1738523256826,48.71434795,197.45,197.26,42.83434795]
[1738523256827,42.83434795,197.45,197.26,42.83434795]
[1738523257022,42.83434795,197.53,197.3,42.83434795]
[1738523257224,0.91293954,197.52,197.3,42.83434795]
[1738523257423,3.912e-05,197.37,197.34,0.03511385]
[1738523257623,3.912e-05,197.37,197.34,42.8694618]
[1738523257927,42.83434795,197.49,197.31,3.0944]
[1738523258122,0.91293954,197.48,197.31,3.0944]
[1738523258317,0.91293954,197.48,197.34,42.83434795]
[1738523258519,42.83434795,197.54,197.34,42.83434795]
[1738523258719,42.83434795,197.5,197.31,3.0944]
[1738523258919,0.03218975,197.43,197.39,8.971e-05]
[1738523259120,42.83434795,197.41,197.39,8.971e-05]
[1738523259322,42.83434795,197.41,197.24,1.381]
[1738523259923,42.83434795,197.45,197.25,55.42312542]
[1738523260123,42.83434795,197.45,197.26,3.56153401]
[1738523260324,0.03751463,197.34,197.31,0.03378082]
[1738523260730,42.83434795,197.41,197.21,49.1205223]
[1738523260731,42.83434795,197.41,197.22,5.69811781]
[1738523261027,0.03424573,197.34,197.31,0.03571843]
[1738523261531,42.83434795,197.49,197.31,0.03571843]
[1738523261827,2.916e-05,197.34,197.32,5.0715]
[1738523262029,42.83434795,197.45,197.23,42.83434795]
[1738523262332,42.83434795,197.45,197.24,9.25960597]
[1738523262532,42.83434795,197.45,197.25,9.84804535]
[1738523262726,42.83434795,197.41,197.25,6.28617435]
[1738523262928,5.0713,197.34,197.25,14.09927528]
[1738523263226,0.03706083,197.35,197.31,0.03705693]
[1738523264732,5.0715,197.33,197.31,0.03705693]
[1738523264933,42.83434795,197.31,197.25,9.03045727]
[1738523265133,42.83434795,197.31,197.25,4.10235727]
[1738523265329,42.83434795,197.31,197.16,100.32]
[1738523266134,0.03314135,197.25,197.22,0.03379299]
[1738523266434,0.03314135,197.25,197.23,5.0737]
[1738523266636,0.90966852,197.37,197.22,42.86814094]
[1738523266837,42.83434795,197.42,197.22,42.86814094]
[1738523267134,42.83434795,197.42,197.23,11.33542564]
[1738523267329,42.83434795,197.42,197.24,17.03414307]
[1738523267531,42.83434795,197.38,197.25,7.77295857]
[1738523267738,0.0366727,197.35,197.31,0.03744082]
[1738523268227,0.0366727,197.35,197.31,42.87178877]
[1738523268530,53.86162843,197.49,197.32,15.79738597]
[1738523268731,0.91089349,197.48,197.32,17.70305412]
[1738523268931,0.91089349,197.47,197.32,17.70305412]
[1738523269133,42.83434795,197.43,197.25,6.28614866]
[1738523269433,42.83434795,197.39,197.26,12.63772186]
[1738523269738,0.03888528,197.36,197.32,0.03906918]
[1738523270135,6.0145,197.41,197.23,42.83434795]
[1738523270335,6.0145,197.41,197.32,0.03638039]
[1738523270535,0.03594726,197.36,197.32,5.10798039]
[1738523270735,53.86162843,197.52,197.32,0.03638039]
[1738523270931,59.87612843,197.52,197.35,42.83434795]
[1738523271138,0.91145709,197.51,197.36,2.996]
[1738523272037,0.03625459,197.45,197.42,0.03285074]
[1738523273133,5.0686,197.44,197.42,0.03285074]
[1738523273338,0.91136955,197.43,197.42,0.03285074]
[1738523273538,0.91136955,197.43,197.24,5.7]
[1738523273740,0.91136955,197.42,197.25,15.68104997]
[1738523273935,0.91136955,197.41,197.26,16.30794087]
[1738523274243,42.83434795,197.45,197.27,16.20064961]
[1738523274440,0.91165973,197.44,197.28,16.20039476]
[1738523274641,42.83434795,197.45,197.26,17.73109709]
[1738523274642,42.83434795,197.45,197.29,16.20039476]
[1738523274943,0.03617932,197.38,197.34,0.03640862]
[1738523275444,0.03617932,197.38,197.35,4.85863919]
[1738523275744,0.03617932,197.38,197.36,9.2587101]
[1738523275942,42.83434795,197.49,197.37,12.63043869]
[1738523276137,42.83434795,197.49,197.38,16.1911295]
[1738523276340,42.83434795,197.49,197.36,4.40007091]
[1738523276538,42.83434795,197.49,197.38,11.43801809]
[1738523276740,42.83434795,197.49,197.39,4.85488959]
[1738523276934,42.83434795,197.49,197.4,12.62106232]
[1738523277141,5.0684,197.45,197.42,0.03223761]
[1738523277341,0.0381495,197.46,197.4,11.43801809]
[1738523278246,0.0381495,197.46,197.37,3.2434]
[1738523278450,0.0381495,197.46,197.41,0.03612164]
[1738523278743,5.0689,197.43,197.41,0.03612164]
[1738523279239,0.0381495,197.46,197.41,0.03612164]
[1738523279443,0.0381495,197.46,197.42,4.84656184]
[1738523279642,53.86162843,197.62,197.42,4.84656184]
[1738523279643,53.86162843,197.62,197.43,4.84628702]
[1738523279946,0.91298674,197.61,197.44,12.59994242]
[1738523280146,53.86162843,197.62,197.45,12.59994242]
[1738523280343,0.91349114,197.61,197.46,12.59994242]
[1738523280548,53.86162843,197.62,197.47,21.80837976]
[1738523280746,42.83434795,197.58,197.48,16.14449249]
[1738523281041,0.03827346,197.56,197.49,12.6028781]
[1738523281247,0.03827346,197.56,197.51,0.03446958]
[1738523281446,0.03827346,197.56,197.52,4.84726081]
[1738523281650,0.03827346,197.56,197.52,11.43138495]
[1738523281843,0.03827346,197.56,197.52,3.48428495]
[1738523282048,42.83434795,197.53,197.47,6.28614866]
[1738523282344,42.83434795,197.53,197.38,13.18887605]
[1738523282548,42.83434795,197.53,197.39,23.21253767]
[1738523282745,42.83434795,197.49,197.4,11.28288067]
[1738523283044,6.1846,197.55,197.41,8.067e-05]
[1738523283045,5.0692,197.42,197.41,8.067e-05]
[1738523283443,42.83434795,197.45,197.35,6.27023799]
[1738523283643,0.03858242,197.46,197.4,0.03814275]
[1738523283843,42.83434795,197.78,197.42,42.83434795]
[1738523283844,42.83434795,197.6,197.42,42.83434795]
[1738523284047,5.0643,197.61,197.51,5.0667]
[1738523284353,42.83434795,197.68,197.51,42.83434795]
[1738523284553,4.497e-05,197.53,197.51,42.83434795]
[1738523284747,4.497e-05,197.53,197.46,42.83434795]
[1738523284941,42.83434795,197.64,197.44,2.9857]
[1738523285142,42.83434795,197.64,197.45,5.53468374]
[1738523285451,5.0662,197.54,197.44,2.9857]
[1738523285651,42.83434795,197.64,197.46,42.83434795]
[1738523285850,5.0663,197.53,197.45,5.0683]
[1738523286148,42.83434795,197.52,197.3,42.83434795]
[1738523286348,42.83434795,197.48,197.31,5.53167072]
[1738523286541,42.83434795,197.44,197.31,5.53167072]
[1738523287242,3.0574,197.51,197.31,48.36601867]
[1738523287446,42.83434795,197.61,197.39,42.83434795]
[1738523287649,6.2111,197.66,197.43,42.83434795]
[1738523287947,0.91169375,197.65,197.48,5.0675]
[1738523288251,0.03588774,197.56,197.53,0.03664408]
[1738523288450,0.03588774,197.56,197.39,42.83434795]
[1738523288652,42.83434795,197.62,197.39,42.83434795]
[1738523288850,5.0672,197.5,197.41,5.0692]
[1738523289050,48.49434795,197.54,197.32,3.2164]
[1738523289348,42.83434795,197.46,197.33,5.41617884]
[1738523289552,6.1335,197.49,197.31,5.53167072]
[1738523289951,0.03674291,197.41,197.38,0.03455637]
[1738523290346,6.1335,197.49,197.38,0.03455637]
[1738523290653,0.0348213,197.41,197.38,4.08455637]
[1738523290851,6.1335,197.49,197.38,4.08455637]
[1738523291050,42.83434795,197.46,197.38,4.08455637]
[1738523291245,5.0697,197.4,197.38,4.08455637]
[1738523291753,5.0697,197.4,197.38,5.637e-05]
[1738523291954,5.0697,197.4,197.31,5.53167072]
[1738523291955,0.03396908,197.41,197.31,5.53167072]
[1738523293252,0.03396908,197.41,197.34,0.03261068]
[1738523293452,0.03396908,197.41,197.34,42.86695863]
[1738523293654,0.03396908,197.41,197.38,42.83434795]
[1738523294155,6.908e-05,197.41,197.39,5.0698]
[1738523294357,6.908e-05,197.41,197.38,42.83434795]
[1738523294656,6.908e-05,197.41,197.36,5.0706]
[1738523294954,6.908e-05,197.41,197.34,42.83434795]
[1738523295256,6.908e-05,197.41,197.37,0.03758286]
[1738523296157,5.0701,197.38,197.31,5.53167072]
[1738523296354,6.908e-05,197.41,197.32,4.40186927]
[1738523296556,42.83434795,197.42,197.31,5.53167072]
[1738523296757,5.0714,197.33,197.31,5.53167072]
[1738523296956,42.83434795,197.42,197.31,5.53167072]
[1738523297256,0.03673495,197.34,197.31,5.53167072]
[1738523297456,0.03673495,197.34,197.3,0.03257908]
[1738523297659,42.83434795,197.38,197.18,42.83434795]
[1738523297848,42.83434795,197.38,197.2,5.0745]
[1738523297849,5.0727,197.28,197.2,5.0745]
[1738523298058,0.03381242,197.34,197.21,7.79253286]
[1738523298246,6.2618,197.36,197.26,0.03618165]
[1738523298555,7.674e-05,197.29,197.27,4.40420957]
[1738523298754,9.4423,197.45,197.27,7.09828801]
[1738523299256,0.9107279,197.44,197.27,7.09828801]
[1738523299458,0.9107279,197.44,197.27,3.0613]
[1738523299652,5.0706,197.37,197.27,3.0613]
[1738523299852,9.4423,197.45,197.34,0.03434827]
[1738523300052,0.03480554,197.37,197.34,0.03434827]
[1738523300250,9.4423,197.45,197.27,3.0613]
[1738523300456,0.03742614,197.37,197.34,0.0336523]
[1738523300749,1.01245317,197.54,197.35,42.83434795]
[1738523300948,0.91106217,197.53,197.35,42.83434795]
[1738523301257,1.01245317,197.54,197.45,5.0683]
[1738523301454,1.01245317,197.54,197.43,42.83434795]
[1738523301650,53.86162843,197.57,197.43,42.83434795]
[1738523301957,58.92702843,197.57,197.44,4.03424697]
[1738523302155,0.03361841,197.52,197.48,0.03513353]
[1738523303058,0.03361841,197.52,197.36,3.0086]
[1738523303256,0.03361841,197.52,197.36,5.9907]
[1738523303455,42.83434795,197.55,197.37,4.03579894]
[1738523303654,3.1468,197.56,197.39,42.83434795]
[1738523303955,5.0687,197.44,197.4,4.03579894]
[1738523304157,0.03397345,197.49,197.46,0.03451014]
[1738523304558,3.1468,197.56,197.39,42.83434795]
[1738523304858,0.03772244,197.49,197.46,0.03874149]
[1738523305063,42.83434795,197.67,197.47,42.83434795]
[1738523305261,0.91172757,197.63,197.51,42.83434795]
[1738523305450,3.1468,197.7,197.51,42.83434795]
[1738523305852,0.91178999,197.63,197.51,42.83434795]
[1738523306358,0.03467714,197.59,197.55,0.03816278]
[1738523307161,5.0653,197.57,197.55,0.03816278]
[1738523307562,42.86902509,197.59,197.44,2.9821]
[1738523307863,42.83434795,197.55,197.31,6.2709]
[1738523308065,42.83434795,197.55,197.37,7.69884281]
[1738523308255,42.83434795,197.51,197.38,4.40023368]
[1738523308458,42.83434795,197.51,197.37,4.03317312]
[1738523308459,42.83434795,197.47,197.37,4.03317312]
[1738523308662,42.83434795,197.56,197.39,4.03317312]
[1738523308860,3.166,197.57,197.35,42.83434795]
[1738523308861,0.03880593,197.46,197.43,42.87153335]
[1738523309064,42.83434795,197.64,197.44,3.2154]
[1738523309363,0.91173502,197.63,197.51,5.0667]
[1738523309560,0.91173502,197.65,197.47,42.83434795]
[1738523309765,2.9811,197.66,197.47,42.83434795]
[1738523309766,0.91173502,197.64,197.47,42.83434795]
[1738523309963,67.95462658,197.67,197.51,42.83434795]
[1738523310265,0.03436307,197.57,197.54,0.03537396]
[1738523310559,42.83434795,197.64,197.54,0.03537396]
[1738523310760,67.95462658,197.67,197.45,48.76564795]
[1738523310957,0.03436349,197.57,197.5,42.83434795]
[1738523311159,0.03436349,197.57,197.54,0.03714096]
[1738523312357,42.83434795,197.56,197.36,9.194]
[1738523312558,5.0675,197.49,197.41,5.0693]
[1738523312758,6.4336,197.55,197.42,8.43948006]
[1738523313061,5.0687,197.44,197.42,2.745e-05]
[1738523313362,47.90304795,197.44,197.43,7.238e-05]
[1738523313562,5.0691,197.42,197.41,1.954e-05]
[1738523314156,5.0706,197.36,197.35,32.39326958]
[1738523314361,5.0706,197.36,197.35,29.27453928]
[1738523314561,42.83434795,197.38,197.33,128.72095007]
[1738523314760,5.0709,197.35,197.34,1.52282965]
[1738523315059,42.83434795,197.38,197.21,3.0141]
[1738523315265,42.83434795,197.45,197.22,1.01409593]
[1738523315266,42.83434795,197.34,197.22,1.01409593]
[1738523315459,0.03499659,197.31,197.28,0.03302299]
[1738523315765,42.83434795,197.34,197.29,1.01373612]
[1738523316065,0.03750762,197.31,197.28,0.03845073]
[1738523316463,5.0694,197.41,197.28,43.84813546]
[1738523316763,5.66,197.47,197.32,42.83434795]
[1738523316962,42.83434795,197.53,197.36,42.83434795]
[1738523317169,42.83434795,197.57,197.4,42.83434795]
[1738523317567,42.83434795,197.57,197.38,0.0349654]
[1738523317763,42.83434795,197.57,197.36,42.83434795]
[1738523318267,42.83434795,197.57,197.39,42.83434795]
[1738523318463,5.0667,197.52,197.42,5.069]
[1738523318672,0.03446259,197.5,197.46,0.03512009]
[1738523319060,6.68626321,197.58,197.52,5.0663]
[1738523319265,1.01229943,197.57,197.47,42.83434795]
[1738523319668,1.01229943,197.57,197.51,5.0665]
[1738523319869,1.01229943,197.57,197.47,42.83434795]
[1738523320373,0.03744534,197.54,197.44,12.2101]
[1738523320766,1.01250442,197.53,197.44,12.2101]
[1738523321071,1.01250442,197.53,197.44,9.1381]
[1738523321762,1.01250442,197.53,197.47,0.03553494]
[1738523323866,42.83434795,197.5,197.35,6.1742]
[1738523324070,42.83434795,197.46,197.26,42.83434795]
[1738523324271,5.0714,197.33,197.24,14.518]
[1738523324474,42.83434795,197.3,197.18,11.25519801]
[1738523324974,42.83434795,197.34,197.15,0.70647437]
[1738523325171,0.03727123,197.26,197.22,0.03641183]
[1738523325364,5.0707,197.36,197.25,5.0735]
[1738523325568,48.49434795,197.42,197.23,6.1742]
[1738523325770,42.83434795,197.46,197.29,42.83434795]
[1738523325972,5.66,197.51,197.33,42.83434795]
[1738523326166,0.91036646,197.5,197.37,42.83434795]
[1738523326367,0.91036646,197.5,197.38,9.4068]
[1738523326571,0.91036646,197.5,197.4,5.0695]
[1738523326777,0.03576274,197.45,197.42,0.03734239]
[1738523327171,0.90938589,197.52,197.44,5.0686]
[1738523327367,1.01250442,197.53,197.42,0.03734239]
[1738523327571,1.01250442,197.53,197.38,9.4068]
[1738523327771,26.74505285,197.49,197.38,9.4068]
[1738523328068,21.81105285,197.49,197.44,42.83434795]
[1738523328376,0.03855605,197.45,197.42,0.03311714]
[1738523331276,0.03855605,197.45,197.42,1.714e-05]
[1738523331976,42.872904,197.45,197.42,1.714e-05]
[1738523332172,1.01296596,197.44,197.24,3.2594]
[1738523332371,42.83434795,197.4,197.24,3.2594]
[1738523332574,5.0716,197.33,197.23,6.0219]
[1738523332778,42.83434795,197.36,197.23,6.0219]
[1738523333182,42.83434795,197.36,197.21,83.97962543]
[1738523333183,5.0733,197.26,197.21,83.97962543]
[1738523333370,42.83434795,197.32,197.21,83.97962543]
[1738523333575,42.83434795,197.28,197.14,6.97201055]
[1738523333881,42.83434795,197.28,197.15,0.9126878]
[1738523334070,42.83434795,197.24,197.08,36.40644431]
[1738523334375,42.83434795,197.2,197.09,0.91267656]
[1738523334975,0.03518594,197.16,197.13,0.03817255]
[1738523335179,5.0715,197.33,197.13,42.8725205]
[1738523335380,42.83434795,197.34,197.17,42.83434795]
[1738523335674,47.90564795,197.34,197.21,5.0744]
[1738523335873,42.83434795,197.34,197.18,3.0746]
[1738523336076,42.83434795,197.38,197.18,3.0746]
[1738523336278,42.83434795,197.38,197.19,6.2381]
[1738523336477,0.03477671,197.28,197.24,0.03440068]
[1738523336780,42.83434795,197.38,197.19,6.2381]
[1738523337078,42.83434795,197.34,197.19,6.2381]
[1738523337382,0.03453947,197.28,197.24,0.03761595]
[1738523337974,42.83434795,197.26,197.13,0.91270167]
[1738523338179,0.03453947,197.28,197.13,0.91270167]
[1738523338180,42.83434795,197.22,197.13,0.91270167]
[1738523338380,42.83434795,197.22,197.07,93.40282543]
[1738523338583,42.83434795,197.22,197.08,0.91290542]
[1738523339180,42.83434795,197.18,197.09,0.91294751]
[1738523339482,0.03309348,197.17,197.13,0.03358417]
[1738523339677,0.03309348,197.17,197.07,83.97962543]
[1738523339872,42.83434795,197.14,197.07,83.97962543]
[1738523340477,42.83434795,197.1,197.07,79.02282543]
[1738523340681,1.01455892,197.13,197.07,79.02282543]
[1738523340983,0.03754985,197.1,197.07,79.0553238]
[1738523341183,0.03754985,197.1,197.07,0.03249837]
[1738523342378,5.0778,197.09,197.07,0.03249837]
[1738523342576,5.66,197.08,196.98,140.00040927]
[1738523342780,5.0801,197.0,196.98,139.95840927]
[1738523342978,42.83434795,196.99,196.94,479.97380454]
[1738523343389,5.0804,196.98,196.94,479.97380454]
[1738523343686,42.83434795,196.99,196.94,479.97380454]
[1738523343887,42.87180022,196.99,196.95,0.03710005]
[1738523344082,0.03745227,196.99,196.95,0.03710005]
[1738523344282,42.83434795,197.07,196.88,42.83434795]
[1738523344479,42.83434795,197.07,196.97,5.0805]
[1738523344691,0.03847914,196.99,196.95,0.03894245]
[1738523344989,42.83434795,196.99,196.95,0.03894245]
[1738523345289,42.83434795,196.99,196.83,0.91344592]
[1738523345493,5.0809,196.96,196.95,1.047e-05]
[1738523345789,42.83434795,196.96,196.81,3.0375]
[1738523345987,5.0831,196.88,196.79,5.0853]
[1738523346186,42.83434795,196.9,196.8,0.91341535]
[1738523346490,5.0836,196.86,196.77,5.0858]
[1738523346792,42.83434795,196.86,196.78,0.91346149]
[1738523346995,0.03548898,196.83,196.8,0.03250351]
[1738523347584,48.49434795,196.82,196.73,0.91355124]
[1738523347786,48.49434795,196.82,196.71,26.44411755]
[1738523347995,1.01620852,196.81,196.71,26.44411755]
[1738523348393,5.0859,196.77,196.71,26.44411755]
[1738523348589,42.83434795,196.74,196.71,17.65751755]
[1738523348802,5.0896,196.63,196.54,274.49036198]
[1738523348992,42.83434795,196.64,196.55,0.91394978]
[1738523349288,42.83434795,196.68,196.55,0.91394978]
[1738523349491,42.83434795,196.68,196.57,0.03844129]
[1738523349689,42.83434795,196.68,196.57,0.95275221]
[1738523349993,6.647e-05,196.61,196.6,5.0902]
[1738523350192,6.647e-05,196.61,196.59,2.9774]
[1738523350393,6.647e-05,196.61,196.54,279.58206198]
[1738523350594,42.83434795,196.68,196.5,2.9774]
[1738523350792,42.83434795,196.68,196.51,0.91474787]
[1738523351296,0.03444462,196.61,196.58,0.0351167]
[1738523351798,48.76040875,196.64,196.58,0.0351167]
[1738523351991,0.03793006,196.61,196.58,0.0351167]
[1738523352392,0.03793006,196.61,196.58,0.95000098]
[1738523352696,0.03793006,196.61,196.59,0.91488428]
[1738523352894,0.03793006,196.61,196.6,0.91488428]
[1738523353595,1.01693191,196.67,196.6,0.91488428]
[1738523353797,78.52688712,196.75,196.63,42.83434795]
[1738523353993,5.9260608,196.78,196.67,42.83434795]
[1738523354189,151.16661875,196.79,196.71,42.83434795]
[1738523354389,131.94781875,196.79,196.75,42.83434795]
[1738523354600,131.94781875,196.79,196.77,5.0857]
[1738523354601,45.86351875,196.79,196.77,5.0857]
[1738523354896,14.57424868,196.78,196.77,5.0857]
[1738523355097,0.03658326,196.8,196.77,5.0857]
[1738523355300,94.77103358,196.81,196.79,47.91964795]
[1738523355501,5.9260608,196.86,196.79,42.83434795]
[1738523355697,5.9260608,196.86,196.85,5.0838]
[1738523355895,5.9260608,196.86,196.79,42.83434795]
[1738523356199,45.04833634,197.04,196.83,42.83434795]
[1738523356500,1.26943783,197.03,196.92,42.83434795]
[1738523356695,1.2694469,197.02,196.92,42.83434795]
[1738523357000,0.03836369,196.95,196.88,42.83434795]
[1738523357198,1.26947691,197.0,196.95,0.0349195]
[1738523357401,1.26947691,196.99,196.82,100.62]
[1738523357602,0.03797476,196.93,196.82,100.62]
[1738523358095,1.26998953,196.92,196.82,100.62]
[1738523358299,0.03797476,196.93,196.82,100.62]
[1738523358502,42.83434795,196.95,196.82,100.62]
[1738523358798,0.03583895,196.89,196.85,0.03800636]
[1738523359995,0.03583895,196.89,196.7,5.0876]
[1738523360198,0.03583895,196.89,196.68,42.83434795]
[1738523360401,6.1651,196.94,196.82,42.83434795]
[1738523360601,6.1651,196.94,196.78,42.83434795]
[1738523360602,1.2700198,196.93,196.78,42.83434795]
[1738523360795,44.10436775,196.92,196.68,42.83434795]
[1738523360995,5.0849,196.81,196.68,42.83434795]
[1738523361195,0.03279091,196.83,196.8,0.03561252]
[1738523361402,0.03279091,196.83,196.8,42.86996047]
[1738523361605,3.30264077,196.92,196.8,42.83434795]
[1738523361900,0.03388703,196.83,196.8,0.03853613]
[1738523362104,1.27028869,196.9,196.71,43.36529687]
[1738523362404,0.03649742,196.83,196.8,0.03735455]
[1738523362603,0.03649742,196.83,196.8,5.455e-05]
[1738523362803,45.93134795,196.88,196.71,43.36529687]
[1738523363106,3.30303829,196.87,196.71,43.36529687]
[1738523363308,3.30337655,196.86,196.71,43.36529687]
[1738523363601,1.27026945,196.85,196.76,42.83434795]
[1738523363802,5.12074997,196.8,196.77,0.0366277]
[1738523364008,1.27085762,196.79,196.77,0.0366277]
[1738523364304,2.54141777,196.87,196.71,0.53094892]
[1738523364305,2.54141777,196.87,196.72,42.83434795]
[1738523364503,0.03306777,196.8,196.76,42.87147662]
[1738523364902,1.27072584,196.84,196.71,0.53094892]
[1738523365102,0.03505805,196.8,196.76,6.901e-05]
[1738523365305,1.27098733,196.79,196.76,6.901e-05]
[1738523365502,5.0858,196.77,196.76,6.901e-05]
[1738523365712,3.30391949,196.77,196.6,42.83434795]
[1738523366003,1.27098733,196.76,196.57,42.83434795]
[1738523366206,1.27098733,196.75,196.7,42.83434795]
[1738523366403,1.25068733,196.74,196.7,42.83434795]
[1738523366604,2.03293216,196.81,196.75,5.0862]
[1738523366902,5.60972231,196.86,196.71,42.83434795]
[1738523367105,0.03583945,196.8,196.76,0.033784]
[1738523367305,11.33584207,196.86,196.75,42.83434795]
[1738523367509,1.4447216,196.87,196.57,42.83434795]
[1738523367510,11.33584207,196.85,196.71,42.83434795]
[1738523367704,3.2129,196.92,196.71,42.83434795]
[1738523367705,0.03549529,196.8,196.76,0.03690686]
[1738523368207,13.94178304,196.89,196.79,42.83434795]
[1738523368409,9.29744536,196.88,196.83,42.83434795]
[1738523368613,1.51134536,196.87,196.83,42.83434795]
[1738523368908,0.03450797,196.87,196.83,42.83434795]
[1738523369302,0.03450797,196.87,196.83,42.87282182]
[1738523369303,7.97e-06,196.87,196.83,42.87282182]
[1738523369505,78.00615453,196.94,196.83,42.87282182]
[1738523369909,78.00615453,196.94,196.83,0.03847387]
[1738523370404,0.89854081,196.93,196.83,0.03847387]